bitfinex/quotes_ETHUSD_20230703
["timestamp","ask_amount","ask_price","bid_price","bid_amount"]
[1688364005117,14.77070816,1947.7,1947.4,5.2349]
[1688364005277,14.77070816,1947.7,1947.4,10.36995]
[1688364005831,14.77070816,1947.7,1947.4,5.2349]
[1688364005997,14.77070816,1947.7,1947.4,10.36995]
[1688364006604,9.63644816,1947.7,1947.4,10.36995]
[1688364007014,4.50218816,1947.7,1947.4,10.36995]
[1688364007311,2.1694,1947.8,1947.4,14.241228]
[1688364007516,7.30346,1947.8,1947.4,15.547228]
[1688364008015,12.43752,1947.8,1947.4,14.241228]
[1688364008710,12.43752,1947.8,1947.4,11.673708]
[1688364008910,12.43752,1947.8,1947.4,5.2349]
[1688364009214,12.43752,1947.8,1947.4,10.36995]
[1688364009793,7.395,1947.5,1947.4,0.1]
[1688364010013,25.35812816,1947.5,1947.4,0.1]
[1688364010378,22.79073816,1947.5,1947.4,0.1]
[1688364010992,9.69356816,1947.5,1947.4,0.1]
[1688364011421,14.82834816,1947.5,1947.4,0.1]
[1688364011718,9.69356816,1947.5,1947.4,0.1]
[1688364011922,14.17575,1947.7,1947.4,5.23505]
[1688364012118,2.55878816,1947.6,1947.4,5.23505]
[1688364012294,2.58627123,1947.6,1947.4,5.23505]
[1688364012634,2.55878816,1947.6,1947.4,5.23505]
[1688364012807,5.13359,1948.0,1947.5,0.523505]
[1688364013133,7.69237816,1948.0,1947.6,12.83604]
[1688364013335,7.69237816,1948.0,1947.6,14.14804]
[1688364013486,5.13359,1948.0,1947.6,14.14804]
[1688364014145,10.26706,1948.0,1947.6,14.14804]
[1688364014640,5.13347,1948.0,1947.6,14.14804]
[1688364014796,5.13347,1948.0,1947.6,15.9151945]
[1688364016940,5.13347,1948.0,1947.6,14.6031945]
[1688364017522,5.13335,1948.1,1947.6,14.6031945]
[1688364017833,12.82547816,1948.1,1947.6,14.6031945]
[1688364019542,7.69212816,1948.1,1947.6,14.6031945]
[1688364019703,7.69212816,1948.1,1947.7,1.46031945]
[1688364019896,7.69212816,1948.1,1947.8,10.26788]
[1688364020356,5.13282,1948.3,1947.9,3.0]
[1688364020528,2.55878816,1948.2,1948.0,10.26682]
[1688364020865,6.314,1948.6,1948.0,11.85018]
[1688364020866,5.0,1948.6,1948.0,11.85018]
[1688364021008,5.0,1948.6,1948.0,14.41691]
[1688364021009,5.13198,1948.6,1948.0,14.41691]
[1688364021653,10.26398,1948.6,1948.0,14.41691]
[1688364021810,5.13198,1948.6,1948.0,14.41691]
[1688364022520,5.13178,1948.7,1948.0,14.41691]
[1688364022724,7.69041816,1948.7,1948.1,4.441691]
[1688364023054,7.69041816,1948.7,1948.2,14.14582]
[1688364031965,7.69041816,1948.7,1948.2,12.83182]
[1688364035348,1.9992,1948.6,1948.2,12.83182]
[1688364042959,7.13109,1948.6,1948.2,12.83182]
[1688364043697,1.9992,1948.6,1948.2,12.83182]
[1688364043925,1.9992,1948.6,1948.2,13.74000804]
[1688364046998,7.13115,1948.6,1948.2,13.74000804]
[1688364058053,1.9992,1948.6,1948.2,13.74000804]
[1688364058255,1.9992,1948.6,1948.2,12.83182]
[1688364061346,7.1312,1948.6,1948.2,12.83182]
[1688364068036,1.9992,1948.6,1948.2,12.83182]
[1688364069558,4.4992,1948.6,1948.2,12.83182]
[1688364084891,2.5,1948.6,1948.3,4.314]
[1688364085059,2.5,1948.6,1948.4,13.26242]
[1688364094188,2.5,1948.6,1948.4,14.57642]
[1688364098423,2.5,1948.6,1948.4,14.98500554]
[1688364101897,2.5,1948.6,1948.4,13.67100554]
[1688364110514,2.5,1948.6,1948.4,13.92763354]
[1688364113819,2.5,1948.6,1948.5,15.83037]
[1688364118614,2.468,1948.6,1948.5,15.83037]
[1688364120949,2.468,1948.6,1948.5,3.0]
[1688364121118,2.468,1948.6,1948.4,5.1322]
[1688364121321,5.290166,1948.6,1948.4,5.1322]
[1688364122618,5.290166,1948.6,1948.4,10.26442]
[1688364124414,4.5302,1948.6,1948.4,12.83062]
[1688364150582,2.468,1948.6,1948.4,12.83062]
[1688364150778,2.468,1948.6,1948.5,3.0]
[1688364151059,2.468,1948.6,1948.5,15.83037]
[1688364159645,2.468,1948.6,1948.5,14.67677]
[1688364159835,2.468,1948.6,1948.5,16.532467]
[1688364188235,2.468,1948.6,1948.5,14.67677]
[1688364189232,2.468,1948.6,1948.5,10.2643]
[1688364189588,2.468,1948.6,1948.5,12.83037]
[1688364191595,2.468,1948.6,1948.5,15.83037]
[1688364194659,2.468,1948.6,1948.5,8.13215]
[1688364194805,2.49476345,1948.6,1948.5,3.0]
[1688364194993,2.49476345,1948.6,1948.5,8.13215]
[1688364195524,2.468,1948.6,1948.5,8.13215]
[1688364195690,2.91725,1948.6,1948.5,8.13215]
[1688364196451,2.91725,1948.6,1948.4,5.13223]
[1688364196452,2.91725,1948.6,1948.3,3.0]
[1688364196594,0.0520995,1948.5,1948.1,3.94595367]
[1688364196799,1.9912995,1948.5,1948.2,11.1580865]
[1688364197023,1.9912995,1948.5,1948.3,3.0]
[1688364197234,2.99534245,1948.5,1948.3,3.0]
[1688364197396,2.99534245,1948.5,1948.3,8.13259]
[1688364198037,1.9912995,1948.5,1948.3,13.26526]
[1688364199901,1.9392,1948.5,1948.3,13.26526]
[1688364201325,1.9392,1948.5,1948.3,15.83159]
[1688364202807,1.965442,1948.5,1948.3,15.83159]
[1688364203312,1.9392,1948.5,1948.3,15.83159]
[1688364203527,1.96560693,1948.5,1948.3,15.83159]
[1688364203722,1.9392,1948.5,1948.3,15.83159]
[1688364204255,1.9657394,1948.5,1948.3,15.83159]
[1688364206213,1.9392,1948.5,1948.3,15.83159]
[1688364206450,1.96586134,1948.5,1948.3,15.83159]
[1688364207226,1.9392,1948.5,1948.3,15.83159]
[1688364219399,2.468,1948.6,1948.3,15.83159]
[1688364227520,4.426,1948.6,1948.3,15.83159]
[1688364239692,5.10060237,1948.6,1948.3,15.83159]
[1688364239866,5.10060237,1948.6,1948.3,13.26526]
[1688364240903,10.23253237,1948.6,1948.3,3.0]
[1688364241041,1.314,1948.4,1947.9,5.13357]
[1688364241239,1.314,1948.4,1947.8,6.161463]
[1688364241240,12.82434816,1948.3,1947.8,6.161463]
[1688364241440,12.82434816,1948.3,1947.8,10.674857]
[1688364241441,3.18633482,1948.2,1947.8,10.674857]
[1688364241744,3.18633482,1948.2,1947.8,12.83469]
[1688364242088,8.31928482,1948.2,1947.8,12.83469]
[1688364242281,3.18633482,1948.2,1947.8,12.83469]
[1688364242472,8.31928482,1948.2,1947.8,5.13382]
[1688364242653,0.84745222,1948.1,1947.9,3.0]
[1688364243049,0.84745222,1948.1,1947.8,3.0]
[1688364243236,5.98068222,1948.1,1947.8,3.0]
[1688364243450,5.98068222,1948.1,1947.7,3.53926131]
[1688364243634,11.11391222,1948.1,1947.8,0.89250228]
[1688364243838,1.11139122,1948.0,1947.7,5.13415]
[1688364244080,1.11139122,1948.0,1947.7,10.26841]
[1688364244267,0.01552374,1948.1,1947.7,12.83554]
[1688364244623,1.9075,1948.0,1947.7,12.83554]
[1688364244947,1.9075,1948.0,1947.8,3.0]
[1688364245147,1.9075,1948.0,1947.8,8.13386]
[1688364246242,1.9075,1948.0,1947.8,13.26785]
[1688364247084,1.9075,1948.0,1947.8,8.13386]
[1688364247256,1.9075,1948.0,1947.8,13.26785]
[1688364247460,1.9075,1948.0,1947.8,15.83484]
[1688364249729,0.01552374,1948.1,1947.8,15.83484]
[1688364252532,1.23609011,1948.1,1947.8,15.83484]
[1688364256032,3.73609011,1948.1,1947.8,15.83484]
[1688364256735,8.86932011,1948.1,1947.8,13.26785]
[1688364267380,8.86932011,1948.1,1947.8,8.13386]
[1688364267685,16.56915011,1948.1,1947.8,3.0]
[1688364267882,0.88693201,1948.0,1947.7,3.0]
[1688364268178,13.13823201,1948.0,1947.7,3.0]
[1688364268385,8.00465201,1948.0,1947.7,3.0]
[1688364268691,0.8004652,1947.9,1947.7,3.0]
[1688364268843,0.8004652,1947.9,1947.6,5.13449]
[1688364269050,0.8004652,1947.9,1947.6,10.26901]
[1688364270080,2.87113201,1948.0,1947.6,10.26901]
[1688364271051,8.00461201,1948.0,1947.6,10.26901]
[1688364282059,8.00461201,1948.0,1947.6,5.13449]
[1688364283719,13.13809201,1948.0,1947.6,10.26901]
[1688364284419,12.25116,1948.0,1947.6,10.26901]
[1688364286242,12.25116,1948.0,1947.7,0.89254568]
[1688364286965,11.69536977,1948.0,1947.7,0.89254568]
[1688364287135,11.69536977,1948.0,1947.7,6.02677568]
[1688364287348,11.69536977,1948.0,1947.7,5.13423]
[1688364292380,11.70536977,1948.0,1947.7,5.13423]
[1688364298841,11.70536977,1948.0,1947.7,6.161102]
[1688364299810,11.70536977,1948.0,1947.7,11.295362]
[1688364304338,6.57188977,1948.0,1947.7,11.295362]
[1688364312722,9.07188977,1948.0,1947.7,11.295362]
[1688364314360,2.51,1948.0,1947.8,0.89253161]
[1688364314562,2.51,1948.0,1947.9,5.13373]
[1688364314764,2.51,1948.0,1947.9,10.26746]
[1688364316549,2.51,1948.0,1947.9,15.423763]
[1688364316760,2.51,1948.0,1947.9,19.31621847]
[1688364321416,2.51,1948.0,1947.9,18.423763]
[1688364347315,2.51,1948.0,1947.9,17.117763]
[1688364355363,2.51,1948.0,1947.9,18.01019564]
[1688364378720,2.51,1948.0,1947.9,17.2896359]
[1688364388489,2.477,1948.0,1947.9,17.2896359]
[1688364395537,2.477,1948.0,1947.9,23.0091805]
[1688364395830,2.477,1948.0,1947.9,24.73705538]
[1688364396042,2.477,1948.0,1947.9,24.46553378]
[1688364396208,1.8589,1948.5,1948.0,0.5]
[1688364396400,5.13068,1949.1,1948.3,0.53946001]
[1688364396601,4.1639,1948.8,1948.5,12.8301]
[1688364396829,4.1639,1948.8,1948.6,3.0]
[1688364397152,4.1639,1948.8,1948.7,10.26324]
[1688364397330,4.1639,1948.8,1948.7,13.26324]
[1688364397534,4.1639,1948.8,1948.7,15.82905]
[1688364397910,7.68946816,1949.1,1948.7,15.82905]
[1688364398243,0.76894682,1949.0,1948.7,15.82905]
[1688364398456,5.89979682,1949.0,1948.7,15.82905]
[1688364400398,5.89734682,1949.0,1948.7,15.82905]
[1688364405546,17.96158816,1949.1,1948.7,15.82905]
[1688364414038,9.35606,1949.1,1948.7,15.82905]
[1688364414536,10.27906,1949.1,1948.7,15.82905]
[1688364417164,4.2254,1949.1,1948.7,18.39486]
[1688364417372,4.2254,1949.1,1948.8,4.839486]
[1688364417670,4.2254,1949.1,1948.9,12.82772]
[1688364419163,2.305,1949.1,1948.9,12.82772]
[1688364429024,3.9817,1949.3,1948.9,12.82772]
[1688364429161,2.1465,1949.3,1948.9,12.82772]
[1688364429360,2.1465,1949.3,1949.0,1.282772]
[1688364429667,2.1465,1949.3,1949.1,12.82642]
[1688364447534,1.9165,1949.4,1949.1,12.82642]
[1688364450341,1.9165,1949.4,1949.0,3.0]
[1688364450536,13.09916,1949.4,1949.1,3.0]
[1688364451939,13.09916,1949.4,1949.1,8.13055]
[1688364455447,5.0,1949.7,1949.2,0.923]
[1688364455743,6.8884,1949.7,1949.3,12.82477]
[1688364456044,6.8884,1949.7,1949.5,10.25904]
[1688364456244,1.8884,1949.7,1949.5,10.25904]
[1688364457550,1.8884,1949.7,1949.5,12.8238]
[1688364458538,1.88127101,1949.7,1949.5,12.8238]
[1688364463249,1.86413437,1949.7,1949.5,12.8238]
[1688364465069,1.86413437,1949.7,1949.5,14.5344277]
[1688364470393,2.1643,1949.8,1949.5,14.5344277]
[1688364470531,4.0131,1949.8,1949.5,14.5344277]
[1688364473158,2.1643,1949.8,1949.5,14.5344277]
[1688364476393,7.29305,1949.8,1949.5,5.12939]
[1688364476591,7.29305,1949.8,1949.5,10.25891]
[1688364476889,7.29305,1949.8,1949.5,12.82367]
[1688364476890,2.1643,1949.8,1949.5,12.82367]
[1688364493256,7.29303,1949.8,1949.5,5.12939]
[1688364493580,12.80474,1949.8,1949.5,10.25891]
[1688364493789,12.80474,1949.8,1949.5,5.12939]
[1688364494293,12.80474,1949.8,1949.5,10.25891]
[1688364495861,7.67599,1949.8,1949.5,10.25891]
[1688364496765,7.27503,1949.8,1949.5,10.25891]
[1688364499219,7.27503,1949.8,1949.1,2.61288616]
[1688364499220,7.12946,1949.6,1948.9,2.56546]
[1688364499431,2.55878816,1949.5,1948.8,0.53946001]
[1688364499558,13.18186,1949.2,1948.7,10.80255001]
[1688364499757,9.626009,1949.2,1948.8,11.15447097]
[1688364499960,9.626009,1949.2,1948.9,0.89199465]
[1688364500272,8.705009,1949.2,1948.9,6.02305465]
[1688364500472,8.705009,1949.2,1948.9,5.13106]
[1688364500688,8.705009,1949.2,1948.9,10.26215]
[1688364501361,13.835329,1949.2,1948.9,5.13106]
[1688364501703,13.835329,1949.2,1948.8,10.26248]
[1688364502225,15.750329,1949.2,1948.8,5.13124]
[1688364502411,15.750329,1949.2,1948.8,10.2626]
[1688364505741,15.750329,1949.2,1948.6,1.02738]
[1688364505742,2.0,1948.9,1948.6,1.02738]
[1688364506033,12.8644405,1948.7,1948.3,5.13249]
[1688364506791,10.2985905,1948.7,1948.3,10.26516]
[1688364507124,10.2985905,1948.7,1948.3,11.548318]
[1688364507332,9.89953,1948.9,1948.4,13.26463]
[1688364507628,9.89953,1948.9,1948.4,15.83083]
[1688364507629,0.02750039,1948.8,1948.4,15.83083]
[1688364507929,17.58956816,1948.9,1948.4,15.83083]
[1688364508140,0.02729996,1948.8,1948.4,15.83083]
[1688364508427,2.0,1948.6,1948.2,1.027542]
[1688364508586,5.16778098,1948.5,1948.2,1.027542]
[1688364508786,10.2644,1948.5,1948.2,1.027542]
[1688364509098,10.2644,1948.5,1948.2,4.027542]
[1688364509316,10.2644,1948.5,1948.2,1.4302962]
[1688364510382,0.02649395,1948.4,1948.2,1.4302962]
[1688364510688,5.1322,1948.5,1948.2,6.5632262]
[1688364511320,0.02742195,1948.4,1948.2,6.5632262]
[1688364512128,5.1322,1948.5,1948.2,6.5632262]
[1688364513930,0.02609724,1948.4,1948.2,1.4302962]
[1688364514095,10.26456,1948.5,1948.2,1.4302962]
[1688364514302,0.02622533,1948.4,1948.2,1.4302962]
[1688364514694,10.26456,1948.5,1948.2,1.4302962]
[1688364516345,10.26456,1948.5,1948.2,1.027542]
[1688364516493,10.26456,1948.5,1948.1,13.26617]
[1688364519931,10.26456,1948.5,1948.1,15.83277]
[1688364520419,5.13178,1948.7,1948.2,0.914]
[1688364520640,5.13178,1948.7,1948.3,12.83135]
[1688364520641,0.02616693,1948.6,1948.3,12.83135]
[1688364520793,5.13178,1948.7,1948.4,6.415345]
[1688364520794,10.26358,1948.7,1948.4,6.415345]
[1688364521004,10.26358,1948.7,1948.4,5.13221]
[1688364524562,0.01552374,1948.9,1948.5,2.55878816]
[1688364524721,5.0,1949.2,1948.6,8.395]
[1688364525040,5.0,1949.2,1948.7,12.82897]
[1688364525238,5.0,1949.2,1948.8,4.282897]
[1688364525538,5.0,1949.2,1948.9,12.8276]
[1688364525745,5.0,1949.2,1949.0,0.916]
[1688364526051,5.13032,1949.2,1948.9,6.04992]
[1688364526255,5.13032,1949.2,1948.9,5.13092]
[1688364527043,5.13032,1949.2,1948.9,6.158134]
[1688364527409,2.0,1949.1,1948.8,3.0]
[1688364527609,2.0,1949.1,1948.5,12.82749]
[1688364527610,10.26198,1949.0,1948.5,12.82749]
[1688364527810,10.26198,1949.0,1948.6,3.0]
[1688364528049,10.26198,1949.0,1948.6,8.1318]
[1688364528267,10.26198,1949.0,1948.6,13.26368]
[1688364528665,5.91949271,1949.0,1948.6,13.26368]
[1688364528874,5.13094,1949.0,1948.6,13.26368]
[1688364529276,5.13094,1949.0,1948.6,15.82962]
[1688364531751,8.53848816,1949.1,1948.6,15.82962]
[1688364532649,8.53848816,1949.1,1948.6,16.74962]
[1688364533038,5.9797,1949.1,1948.6,16.74962]
[1688364533240,5.9797,1949.1,1948.8,12.82827]
[1688364533756,5.9797,1949.1,1948.8,10.26262]
[1688364535981,11.11027,1949.1,1948.8,10.26262]
[1688364536444,18.79962816,1949.1,1948.6,8.13175]
[1688364536876,2.55878816,1949.0,1948.6,8.13175]
[1688364537055,10.2623,1948.9,1948.6,3.0]
[1688364537366,10.2623,1948.9,1948.5,5.13196]
[1688364537367,12.82108816,1948.9,1948.5,5.13196]
[1688364537684,16.73908816,1948.9,1948.5,5.13196]
[1688364537846,16.73908816,1948.9,1948.4,8.13226]
[1688364538195,16.73908816,1948.9,1948.5,3.0]
[1688364538346,16.73908816,1948.9,1948.6,0.032]
[1688364540390,19.30462816,1948.9,1948.6,0.032]
[1688364541093,2.0,1948.7,1948.6,0.032]
[1688364541393,7.13162,1948.7,1948.6,0.032]
[1688364544392,7.15983505,1948.7,1948.6,0.032]
[1688364546493,7.13162,1948.7,1948.6,0.032]
[1688364550526,12.26324,1948.7,1948.6,0.032]
[1688364550769,7.13162,1948.7,1948.6,0.032]
[1688364550904,12.26324,1948.7,1948.6,0.032]
[1688364551106,14.82202816,1948.7,1948.6,0.032]
[1688364551640,17.38783816,1948.7,1948.6,0.032]
[1688364552873,17.4165085,1948.7,1948.6,0.032]
[1688364553224,17.38783816,1948.7,1948.6,0.032]
[1688364553555,14.82202816,1948.7,1948.6,0.032]
[1688364553747,15.30202816,1948.7,1948.6,0.032]
[1688364554662,14.82202816,1948.7,1948.6,0.032]
[1688364555684,17.38783816,1948.7,1948.6,0.032]
[1688364555878,19.80113816,1948.7,1948.6,0.032]
[1688364557655,25.19613816,1948.7,1948.6,0.032]
[1688364557856,26.11213816,1948.7,1948.6,0.032]
[1688364559167,31.11213816,1948.7,1948.6,0.032]
[1688364559380,31.1276619,1948.7,1948.6,0.032]
[1688364559682,2.0,1947.5,1947.3,0.1]
[1688364559840,10.2701,1947.4,1947.3,0.1]
[1688364560039,5.13505,1947.4,1947.2,10.17098]
[1688364560381,12.26989,1947.5,1947.3,5.13531]
[1688364560564,7.13493,1947.5,1947.3,5.13531]
[1688364560751,7.13493,1947.5,1947.3,10.27062]
[1688364561166,7.13493,1947.5,1947.3,5.13531]
[1688364561478,14.83734,1947.5,1947.2,5.13542]
[1688364562295,2.0,1947.5,1947.2,14.46682701]
[1688364562499,12.26874,1947.7,1947.2,14.46682701]
[1688364562668,12.26874,1947.7,1947.3,0.919]
[1688364562855,12.26874,1947.7,1947.4,5.13499]
[1688364563756,2.0,1947.5,1947.3,6.05416]
[1688364563981,7.13485,1947.5,1947.3,6.08661332]
[1688364564552,7.13485,1947.5,1947.3,0.95145332]
[1688364569200,12.2697,1947.5,1947.2,1.63005701]
[1688364569367,12.2697,1947.5,1947.2,6.76554701]
[1688364569986,7.13485,1947.5,1947.2,11.90111701]
[1688364570796,2.0,1947.5,1947.2,11.90111701]
[1688364571303,2.0,1947.5,1947.2,14.46889701]
[1688364571866,2.0,1947.5,1947.3,1.4468897]
[1688364572099,2.0,1947.5,1947.4,5.13505]
[1688364573105,7.13427,1947.7,1947.4,5.13505]
[1688364573262,2.0,1947.7,1947.4,11.1921]
[1688364573597,12.26852,1947.7,1947.4,10.2701]
[1688364573798,2.0,1947.5,1947.4,5.13505]
[1688364574101,5.13458,1947.6,1947.4,5.13505]
[1688364574269,10.26922,1947.6,1947.4,5.13505]
[1688364574675,2.0,1947.5,1947.4,5.13505]
[1688364576791,7.13441,1947.7,1947.4,10.783605]
[1688364577219,7.13441,1947.7,1947.4,10.2701]
[1688364577719,2.0,1947.5,1947.4,10.2701]
[1688364578638,2.0,1947.5,1947.4,5.13505]
[1688364579034,2.0,1947.5,1947.3,8.6248]
[1688364579035,7.13478,1947.5,1947.3,11.19235]
[1688364579211,7.13478,1947.5,1947.3,5.13515]
[1688364579911,5.13478,1947.5,1947.3,5.13515]
[1688364580637,7.13478,1947.5,1947.3,5.13515]
[1688364587507,12.26956,1947.5,1947.1,6.15774]
[1688364587701,16.66335,1947.5,1947.2,3.0]
[1688364588249,16.66335,1947.5,1947.1,9.15783]
[1688364588428,16.66335,1947.5,1947.1,4.022]
[1688364588801,16.66335,1947.5,1947.1,9.15783]
[1688364589913,14.09596,1947.5,1947.1,9.15783]
[1688364591608,16.65474816,1947.5,1947.1,9.15783]
[1688364595618,16.65474816,1947.5,1947.1,8.23583]
[1688364597172,16.65474816,1947.5,1947.1,9.15583]
[1688364597321,16.65474816,1947.5,1947.1,14.29167]
[1688364597766,9.51996816,1947.5,1947.2,0.919]
[1688364598066,9.51996816,1947.5,1947.3,5.13531]
[1688364598067,11.51996816,1947.5,1947.3,5.13531]
[1688364598253,11.51996816,1947.5,1947.3,10.27062]
[1688364598765,6.38518816,1947.5,1947.3,10.27062]
[1688364599164,4.38518816,1947.5,1947.3,10.27062]
[1688364599463,6.38518816,1947.5,1947.3,10.27062]
[1688364600159,4.38518816,1947.5,1947.3,10.27062]
[1688364600963,6.38518816,1947.5,1947.3,10.27062]
[1688364602753,2.0,1947.5,1947.3,10.27062]
[1688364605235,2.0,1947.5,1947.4,0.89265688]
[1688364605437,2.0,1947.5,1947.4,6.02770688]
[1688364606569,2.0,1947.7,1947.4,11.70221689]
[1688364606747,6.36238816,1947.7,1947.5,6.02738688]
[1688364606939,6.36238816,1947.7,1947.5,5.13473]
[1688364607146,8.9379,1947.7,1947.5,10.26951]
[1688364607383,3.8036,1947.7,1947.5,10.26951]
[1688364607574,2.0,1947.7,1947.5,10.26951]
[1688364607764,2.0,1947.9,1947.6,0.89259635]
[1688364607967,2.0,1947.9,1947.7,5.13426]
[1688364607968,11.58043816,1947.9,1947.7,5.13426]
[1688364608297,11.58043816,1947.9,1947.3,5.58032262]
[1688364608298,2.0,1947.5,1947.3,0.53946001]
[1688364608444,5.13505,1947.4,1947.3,0.53946001]
[1688364608643,5.13505,1947.4,1947.3,1.43213718]
[1688364609250,5.13505,1947.4,1947.3,0.89267717]
[1688364612791,2.0,1947.5,1947.3,11.16329717]
[1688364612990,2.0,1947.5,1947.4,6.02772717]
[1688364613193,2.0,1947.5,1947.4,5.13505]
[1688364613367,2.0,1947.5,1947.4,6.02771989]
[1688364626303,7.13478,1947.5,1947.4,0.89266989]
[1688364626502,2.0,1947.5,1947.3,6.5674199]
[1688364626738,2.0,1947.5,1947.4,0.89266989]
[1688364626913,2.0,1947.5,1947.4,6.02771989]
[1688364627119,2.0,1947.5,1947.4,11.16276989]
[1688364627435,2.0,1947.5,1947.4,12.08076989]
[1688364630144,12.26881,1947.7,1947.4,12.08076989]
[1688364630346,12.26881,1947.7,1947.5,0.89006989]
[1688364631543,12.26881,1947.7,1947.4,11.1881]
[1688364635450,14.19601,1947.7,1947.4,11.1881]
[1688364638622,9.06157,1947.7,1947.4,6.05305]
[1688364639919,3.9272,1947.7,1947.4,6.05305]
[1688364641462,9.06153,1947.7,1947.4,11.1881]
[1688364643077,9.06153,1947.7,1947.4,10.2701]
[1688364644075,3.9272,1947.7,1947.4,12.83762]
[1688364646639,3.9272,1947.7,1947.4,13.37708001]
[1688364647575,9.06146,1947.7,1947.4,13.37708001]
[1688364648429,9.06146,1947.7,1947.4,12.83762]
[1688364648430,10.48257137,1947.7,1947.4,12.83762]
[1688364648555,19.10496137,1947.7,1947.3,0.53946001]
[1688364648752,2.55878816,1947.6,1947.2,0.53946001]
[1688364648937,10.26968,1947.5,1947.2,3.53946001]
[1688364649282,12.97449534,1947.5,1947.2,8.67502001]
[1688364650577,12.97449534,1947.5,1947.3,0.89271042]
[1688364650785,12.97449534,1947.5,1947.3,6.02792042]
[1688364651081,12.97449534,1947.5,1947.3,5.13521]
[1688364652168,7.83965534,1947.5,1947.3,5.13521]
[1688364653480,7.83965534,1947.5,1947.3,10.27052]
[1688364655980,2.70481534,1947.5,1947.3,10.27052]
[1688364657557,1.9275,1947.5,1947.3,12.83817]
[1688364662406,1.9275,1947.5,1947.3,10.27052]
[1688364664815,7.38962,1947.6,1947.3,10.27052]
[1688364664983,2.2551,1947.6,1947.3,10.27052]
[1688364665410,4.0649,1947.6,1947.3,10.27052]
[1688364668414,9.1995,1947.6,1947.3,10.27052]
[1688364672883,14.3341,1947.6,1947.3,10.27052]
[1688364673044,15.96751,1947.6,1947.3,10.27052]
[1688364674480,15.96751,1947.6,1947.3,5.13521]
[1688364675899,15.96751,1947.6,1947.2,8.67491001]
[1688364676102,15.96751,1947.6,1947.3,0.89268923]
[1688364677369,18.53477,1947.6,1947.3,0.89268923]
[1688364677978,0.56501671,1947.5,1947.3,0.89268923]
[1688364678189,5.13505,1947.4,1947.3,0.89268923]
[1688364678526,5.13505,1947.4,1947.2,3.0]
[1688364678707,10.2701,1947.4,1947.2,3.0]
[1688364679106,12.83762,1947.4,1947.1,11.31192256]
[1688364679306,14.37788367,1947.4,1947.2,0.89274988]
[1688364679467,16.33738367,1947.4,1947.2,0.89274988]
[1688364679979,13.76986367,1947.4,1947.2,0.89274988]
[1688364680613,13.76986367,1947.4,1947.2,6.02830988]
[1688364680908,13.76986367,1947.4,1947.2,5.13556]
[1688364681104,12.2296,1947.4,1947.2,5.13556]
[1688364682176,7.09455,1947.4,1947.2,5.13556]
[1688364685011,12.2296,1947.4,1947.2,5.13556]
[1688364688220,10.2701,1947.4,1947.1,10.77245255]
[1688364688583,12.83762,1947.4,1947.1,5.63673255]
[1688364689224,16.270982,1947.4,1947.1,5.63673255]
[1688364689393,16.270982,1947.4,1947.1,0.50102255]
[1688364690231,14.78722,1947.4,1947.1,0.50102255]
[1688364693941,14.78722,1947.4,1947.1,5.63683255]
[1688364694408,5.16262256,1947.3,1947.1,5.63683255]
[1688364694609,5.13549,1947.3,1947.1,5.63683255]
[1688364694826,10.27098,1947.3,1947.1,5.63683255]
[1688364695144,10.27098,1947.3,1947.1,0.50102255]
[1688364695353,14.31744,1947.3,1947.1,0.1]
[1688364695550,15.25496374,1947.3,1947.1,0.1]
[1688364696424,14.33296374,1947.3,1947.1,0.1]
[1688364697737,16.33296374,1947.3,1947.1,0.1]
[1688364697947,10.99075671,1947.2,1947.1,0.1]
[1688364698303,5.85518671,1947.2,1947.1,0.1]
[1688364699662,5.85518671,1947.2,1947.1,5.23584]
[1688364700029,0.71961671,1947.2,1947.1,5.23584]
[1688364700519,5.85518671,1947.2,1947.1,5.23584]
[1688364702155,0.71961671,1947.2,1947.1,5.23584]
[1688364702447,5.85518671,1947.2,1947.1,5.23584]
[1688364702605,0.71961671,1947.2,1947.1,5.23584]
[1688364705839,2.0,1947.3,1947.1,5.23584]
[1688364708453,2.0,1947.3,1947.1,0.1]
[1688364711646,7.13539,1947.3,1947.1,0.1]
[1688364712935,12.27078,1947.3,1947.1,5.23583]
[1688364713438,12.27078,1947.3,1947.1,0.1]
[1688364715028,13.939022,1947.3,1947.1,0.1]
[1688364717527,16.506672,1947.3,1947.1,0.1]
[1688364718860,16.506672,1947.3,1947.1,0.1304074]
[1688364719770,2.0,1947.3,1947.1,0.1304074]
[1688364719979,12.27072,1947.3,1947.1,5.2662274]
[1688364720472,12.27072,1947.3,1947.1,0.1304074]
[1688364724259,17.39715816,1947.3,1947.1,0.1304074]
[1688364724584,15.39770816,1947.2,1947.1,0.1304074]
[1688364729542,16.31870816,1947.2,1947.1,0.1304074]
[1688364733261,15.39770816,1947.2,1947.1,0.1304074]
[1688364742962,16.31970816,1947.2,1947.1,0.1304074]
[1688364743292,24.79070816,1947.2,1947.1,0.1304074]
[1688364743493,27.77070816,1947.2,1947.1,0.1304074]
[1688364743692,30.77070816,1947.2,1947.1,0.1304074]
[1688364744148,35.77070816,1947.2,1947.1,0.1304074]
[1688364744310,7.395,1947.1,1947.0,0.1]
[1688364744643,23.71538816,1947.1,1947.0,0.1]
[1688364745244,22.39838816,1947.1,1947.0,0.1]
[1688364747150,17.39838816,1947.1,1947.0,0.1]
[1688364750764,14.83046816,1947.1,1947.0,0.1]
[1688364752105,17.39838816,1947.1,1947.0,0.1]
[1688364754267,22.39838816,1947.1,1947.0,0.1]
[1688364769232,27.79338816,1947.1,1947.0,0.1]
[1688364772934,30.86938816,1947.1,1947.0,0.1]
[1688364773237,31.79138816,1947.1,1947.0,0.1]